fUSD/lending_fUSD_20250112
["ID","MTS","AMOUNT","RATE_DAILY","PERIOD"]
[348589894,1736649037928,-500.0,9.98e-05,2]
[348589895,1736649037939,-500.0,9.98e-05,2]
[348589896,1736649037948,-2472.25,9.98e-05,2]
[348589897,1736649037958,-500.0,9.98e-05,2]
[348589898,1736649037968,-500.0,9.98e-05,2]
[348589899,1736649037978,-647.39,9.98e-05,2]
[348589900,1736649037988,-500.0,9.98e-05,2]
[348589901,1736649037997,-500.0,9.98e-05,2]
[348589902,1736649038007,-1239.29,9.981e-05,2]
[348589903,1736649038016,-3432.51,9.981e-05,2]
[348589904,1736649038026,-500.0,9.981e-05,2]
[348589905,1736649038040,-871.58,9.981e-05,2]
[348589906,1736649038050,-901.81,9.981e-05,2]
[348589907,1736649038059,-1248.1,9.981e-05,2]
[348589908,1736649038070,-1415.88,9.981e-05,2]
[348589909,1736649038080,-1724.85,9.981e-05,2]
[348589910,1736649038089,-500.0,9.982e-05,2]
[348589911,1736649038099,-500.0,9.982e-05,2]
[348589912,1736649038112,-500.0,9.982e-05,2]
[348589913,1736649038121,-500.0,9.982e-05,2]
[348589914,1736649038131,-500.0,9.982e-05,2]
[348589915,1736649038141,-500.0,9.982e-05,2]
[348589916,1736649038151,-500.0,9.982e-05,2]
[348589917,1736649038162,-500.0,9.982e-05,2]
[348589918,1736649038172,-500.0,9.982e-05,2]
[348589919,1736649038181,-500.0,9.982e-05,2]
[348589920,1736649038191,-500.0,9.982e-05,2]
[348589921,1736649038202,-500.0,9.982e-05,2]
[348589922,1736649038211,-500.0,9.982e-05,2]
[348589923,1736649038220,-500.0,9.982e-05,2]
[348589924,1736649038229,-500.0,9.982e-05,2]
[348589925,1736649038239,-500.0,9.982e-05,2]
[348589926,1736649038248,-500.0,9.982e-05,2]
[348589927,1736649038257,-500.0,9.982e-05,2]
[348589928,1736649038268,-500.0,9.982e-05,2]
[348589929,1736649038278,-500.0,9.982e-05,2]
[348589930,1736649038288,-500.0,9.982e-05,2]
[348589931,1736649038297,-500.0,9.982e-05,2]
[348589932,1736649038306,-500.0,9.982e-05,2]
[348589933,1736649038316,-500.0,9.982e-05,2]
[348589934,1736649038325,-504.57,9.982e-05,2]
[348589935,1736649038335,-500.0,9.982e-05,2]
[348589936,1736649038344,-566.71,9.982e-05,2]
[348589937,1736649038353,-500.0,9.982e-05,2]
[348589938,1736649038364,-523.41,9.982e-05,2]
[348589939,1736649038374,-500.0,9.982e-05,2]
[348589940,1736649038383,-500.0,9.982e-05,2]
[348589941,1736649038392,-666.29,9.982e-05,2]
[348589942,1736649038401,-500.0,9.982e-05,2]
[348589943,1736649038411,-500.0,9.982e-05,2]
[348589944,1736649038419,-500.0,9.982e-05,2]
[348589945,1736649038428,-500.0,9.982e-05,2]
[348589946,1736649038437,-851.34,9.982e-05,2]
[348589947,1736649038447,-500.0,9.982e-05,2]
[348589948,1736649038456,-726.93,9.982e-05,2]
[348589949,1736649038466,-500.0,9.982e-05,2]
[348589950,1736649038476,-820.24,9.982e-05,2]
[348589951,1736649038486,-500.0,9.982e-05,2]
[348589952,1736649038495,-500.0,9.982e-05,2]
[348589953,1736649038504,-500.0,9.982e-05,2]
[348589954,1736649038513,-500.0,9.982e-05,2]
[348589955,1736649038522,-500.0,9.982e-05,2]
[348589956,1736649038531,-500.0,9.982e-05,2]
[348589957,1736649038541,-500.0,9.982e-05,2]
[348589958,1736649038550,-500.0,9.982e-05,2]
[348589959,1736649038559,-1338.0,9.983e-05,2]
[348589960,1736649038569,-3783.6,9.983e-05,2]
[348589961,1736649038579,-1450.58,9.983e-05,2]
[348589962,1736649038589,-2257.13,9.983e-05,2]
[348589963,1736649038598,-582.90635453,9.983e-05,2]
[348589964,1736649038615,-614.09364547,9.983e-05,2]
[348589965,1736649038626,-1337.12,9.983e-05,2]
[348589966,1736649038635,-500.0,9.983e-05,2]
[348589967,1736649038646,-663.15,9.983e-05,2]
[348589968,1736649038656,-1880.083242,9.983e-05,2]
[348589969,1736649038700,-80.366758,9.983e-05,2]
[348589970,1736649038709,-856.09,9.983e-05,2]
[348589971,1736649038717,-403.55502755,9.983e-05,2]
[348589972,1736649038752,-347.49497245,9.983e-05,2]
[348589973,1736649038762,-500.0,9.983e-05,2]
[348589974,1736649038772,-500.0,9.983e-05,2]
[348589975,1736649038780,-1184.65,9.983e-05,2]
[348589976,1736649038790,-526.48,9.983e-05,2]
[348589977,1736649038800,-1169.83,9.983e-05,2]
[348589978,1736649038809,-1701.68,9.983e-05,2]
[348589979,1736649038818,-877.09,9.983e-05,2]
[348589980,1736649038828,-2466.31,9.983e-05,2]
[348589981,1736649038837,-1226.1,9.983e-05,2]
[348589982,1736649038847,-5046.33235155,9.983e-05,2]
[348589983,1736649038860,-1264.53764845,9.983e-05,2]
[348589984,1736649038872,-1079.04,9.983e-05,2]
[348589985,1736649038881,-73.94624342,9.983e-05,2]
[348589986,1736649038892,-1368.65375658,9.983e-05,2]
[348589987,1736649038907,-655.54,9.985e-05,2]
[348589988,1736649038917,-719.17,9.985e-05,2]
[348589989,1736649038927,-2060.53789342,9.985e-05,2]
[348589990,1736649038939,-233.09210658,9.985e-05,2]
[348589991,1736649038948,-317.38164642,9.985e-05,2]
[348589992,1736649038959,-182.61835358,9.985e-05,2]
[348589993,1736649038970,-729.73,9.985e-05,2]
[348589994,1736649038980,-958.13,9.985e-05,2]
[348589995,1736649038989,-1510.39,9.985e-05,2]
[348589996,1736649038998,-1000.0,9.985e-05,2]
[348589997,1736649039007,-703.31,9.985e-05,2]
[348589998,1736649039016,-500.0,9.985e-05,2]
[348589999,1736649039031,-2070.08,9.985e-05,2]
[348590000,1736649039042,-333.06651249,9.988e-05,2]
[348590001,1736649039053,-384.66782989,9.988e-05,2]
[348590002,1736649039075,-108.65565762,9.988e-05,2]
[348590003,1736649039086,-328.56560587,9.988e-05,2]
[348590004,1736649039097,-301.91055826,9.988e-05,2]
[348590009,1736649039914,-1262.59748587,9.899e-05,2]
[348590010,1736649039925,-3737.40251413,9.899e-05,2]
[348590011,1736649039935,-2239.05383587,9.988e-05,2]
[348590012,1736649039944,-1363.07,9.988e-05,2]
[348590013,1736649039953,-2530.18,9.988e-05,2]
[348590014,1736649039963,-7131.55,9.988e-05,2]
[348590015,1736649039972,-500.0,9.988e-05,2]
[348590016,1736649039981,-644.41,9.988e-05,2]
[348590017,1736649039990,-1029.61,9.988e-05,2]
[348590018,1736649040000,-2089.3,9.988e-05,2]
[348590019,1736649040009,-500.0,9.988e-05,2]
[348590020,1736649040018,-3916.0,9.988e-05,2]
[348590021,1736649040029,-1190.51,9.988e-05,2]
[348590022,1736649040039,-646.93,9.988e-05,2]
[348590023,1736649040049,-1784.11,9.988e-05,2]
[348590024,1736649040058,-500.0,9.988e-05,2]
[348590025,1736649040067,-2034.248,9.989e-05,2]
[348590026,1736649040076,-294.86764801,9.989e-05,2]
[348590027,1736649040086,-2002.22,9.99e-05,2]
[348590028,1736649040095,-500.0,9.995e-05,2]
[348590029,1736649040106,-2171.01,9.995e-05,2]
[348590030,1736649040115,-1199.34,9.995e-05,2]
[348590031,1736649040124,-500.0,9.995e-05,2]
[348590032,1736649040133,-2670.0,9.995e-05,2]
[348590033,1736649040143,-1815.72,9.995e-05,2]
[348590034,1736649040152,-854.43,9.995e-05,2]
[348590035,1736649040162,-1017.55,9.995e-05,2]
[348590036,1736649040171,-500.0,9.995e-05,2]
[348590037,1736649040180,-1086.3,9.995e-05,2]
[348590038,1736649040189,-2907.22,9.995e-05,2]
[348590039,1736649040198,-660.53,9.995e-05,2]
[348590040,1736649040207,-541.75,9.995e-05,2]
[348590041,1736649040216,-500.0,9.995e-05,2]
[348590042,1736649040225,-500.0,9.995e-05,2]
[348590043,1736649040236,-1032.19,9.995e-05,2]
[348590044,1736649040245,-1565.94,9.995e-05,2]
[348590045,1736649040255,-2844.23,9.995e-05,2]
[348590046,1736649040264,-1634.28,9.995e-05,2]
[348590047,1736649040273,-500.0,9.995e-05,2]
[348590048,1736649040282,-500.0,9.995e-05,2]
[348590049,1736649040292,-500.0,9.995e-05,2]
[348590050,1736649040301,-500.0,9.995e-05,2]
[348590051,1736649040310,-2070.27,9.995e-05,2]
[348590052,1736649040319,-571.38,9.995e-05,2]
[348590053,1736649040328,-500.0,9.995e-05,2]
[348590054,1736649040337,-500.0,9.995e-05,2]
[348590055,1736649040347,-500.0,9.996e-05,2]
[348590056,1736649040356,-500.0,9.996e-05,2]
[348590057,1736649040365,-549.49,9.996e-05,2]
[348590058,1736649040374,-500.0,9.996e-05,2]
[348590059,1736649040383,-507.12589185,9.996e-05,2]
[348590060,1736649040393,-500.0,9.996e-05,2]
[348590061,1736649040402,-877.62,9.996e-05,2]
[348590062,1736649040411,-500.0,9.996e-05,2]
[348590063,1736649040421,-632.66,9.996e-05,2]
[348590064,1736649040430,-709.27,9.996e-05,2]
[348590065,1736649040439,-500.0,9.996e-05,2]
[348590066,1736649040448,-500.0,9.996e-05,2]
[348590067,1736649040457,-500.0,9.996e-05,2]
[348590068,1736649040467,-500.0,9.996e-05,2]
[348590069,1736649040476,-722.45,9.996e-05,2]
[348590070,1736649040484,-500.0,9.996e-05,2]
[348590071,1736649040493,-508.27,9.996e-05,2]
[348590072,1736649040502,-500.0,9.996e-05,2]
[348590073,1736649040511,-500.0,9.996e-05,2]
[348590074,1736649040520,-500.0,9.996e-05,2]
[348590075,1736649040529,-733.07,9.996e-05,2]
[348590076,1736649040539,-410.12073813,9.996e-05,2]
[348590077,1736649040548,-500.0,9.996e-05,2]
[348590078,1736649040557,-536.76,9.996e-05,2]
[348590079,1736649040566,-500.0,9.996e-05,2]
[348590080,1736649040575,-500.0,9.996e-05,2]
[348590081,1736649040584,-500.0,9.996e-05,2]
[348590082,1736649040593,-500.0,9.996e-05,2]
[348590083,1736649040602,-578.24,9.996e-05,2]
[348590084,1736649040611,-671.73,9.996e-05,2]
[348590085,1736649040620,-500.0,9.996e-05,2]
[348590086,1736649040630,-500.0,9.996e-05,2]
[348590087,1736649040639,-500.0,9.996e-05,2]
[348590088,1736649040648,-1438.32,9.996e-05,2]
[348590089,1736649040657,-678.35,9.996e-05,2]
[348590090,1736649040667,-500.0,9.996e-05,2]
[348590091,1736649040676,-500.0,9.996e-05,2]
[348590092,1736649040685,-833.32,9.996e-05,2]
[348590093,1736649040695,-500.0,9.996e-05,2]
[348590094,1736649040704,-500.0,9.996e-05,2]
[348590095,1736649040713,-500.0,9.996e-05,2]
[348590096,1736649040722,-1155.076744,9.996e-05,2]
[348590097,1736649040731,-1126.51,9.996e-05,2]
[348590098,1736649040741,-500.0,9.996e-05,2]
[348590099,1736649040750,-500.0,9.996e-05,2]
[348590100,1736649040759,-500.0,9.996e-05,2]
[348590101,1736649040769,-500.0,9.996e-05,2]
[348590102,1736649040778,-1202.814854,9.996e-05,2]
[348590103,1736649040788,-825.2,9.996e-05,2]
[348590104,1736649040797,-500.0,9.996e-05,2]
[348590105,1736649040806,-500.0,9.996e-05,2]
[348590106,1736649040815,-500.0,9.996e-05,2]
[348590107,1736649040825,-500.0,9.996e-05,2]
[348590108,1736649040834,-3130.09,9.996e-05,2]
[348590109,1736649040843,-500.0,9.996e-05,2]
[348590110,1736649040852,-533.53,9.996e-05,2]
[348590111,1736649040862,-500.0,9.996e-05,2]
[348590112,1736649040871,-649.45,9.996e-05,2]
[348590113,1736649040880,-500.0,9.996e-05,2]
[348590114,1736649040889,-661.29,9.996e-05,2]
[348590115,1736649040898,-500.0,9.996e-05,2]
[348590116,1736649041087,-1119.15,9.996e-05,2]
[348590117,1736649041097,-500.0,9.996e-05,2]
[348590118,1736649041106,-500.0,9.996e-05,2]
[348590119,1736649041116,-555.53,9.996e-05,2]
[348590120,1736649041126,-524.64,9.996e-05,2]
[348590121,1736649041135,-500.0,9.996e-05,2]
[348590122,1736649041144,-525.17,9.996e-05,2]
[348590123,1736649041153,-500.0,9.996e-05,2]
[348590124,1736649041162,-500.0,9.996e-05,2]
[348590125,1736649041171,-500.0,9.996e-05,2]
[348590126,1736649041181,-500.0,9.996e-05,2]
[348590127,1736649041191,-568.93,9.996e-05,2]
[348590128,1736649041200,-1449.42,9.996e-05,2]
[348590129,1736649041209,-500.0,9.996e-05,2]
[348590130,1736649041218,-500.0,9.996e-05,2]
[348590131,1736649041228,-500.0,9.996e-05,2]
[348590132,1736649041237,-504.2,9.996e-05,2]
[348590133,1736649041246,-3361.83,9.996e-05,2]
[348590134,1736649041255,-500.0,9.996e-05,2]
[348590135,1736649041264,-743.5,9.996e-05,2]
[348590136,1736649041274,-3759.82,9.996e-05,2]
[348590137,1736649041283,-500.0,9.996e-05,2]
[348590138,1736649041293,-712.64,9.996e-05,2]
[348590139,1736649041303,-500.0,9.996e-05,2]
[348590140,1736649041312,-688.27,9.996e-05,2]
[348590141,1736649041321,-1999.19,9.996e-05,2]
[348590142,1736649041330,-500.0,9.996e-05,2]
[348590143,1736649041339,-500.0,9.996e-05,2]
[348590144,1736649041347,-500.0,9.996e-05,2]
[348590145,1736649041357,-500.0,9.996e-05,2]
[348590146,1736649041366,-924.74,9.996e-05,2]
[348590147,1736649041375,-664.48,9.996e-05,2]
[348590148,1736649041385,-500.0,9.996e-05,2]
[348590149,1736649041394,-500.0,9.996e-05,2]
[348590150,1736649041403,-500.0,9.996e-05,2]
[348590151,1736649041412,-500.0,9.996e-05,2]
[348590152,1736649041421,-591.05,9.996e-05,2]
[348590153,1736649041430,-500.0,9.996e-05,2]
[348590154,1736649041439,-1447.39,9.997e-05,2]
[348590155,1736649041448,-500.0,9.999e-05,2]
[348590156,1736649041457,-500.0,9.999e-05,2]
[348590157,1736649041466,-500.0,9.999e-05,2]
[348590158,1736649041476,-355.39688914,9.999e-05,2]
[348590159,1736649041485,-500.0,9.999e-05,2]
[348590160,1736649041493,-286.86601009,9.999e-05,2]
[348590161,1736649041865,-213.13398991,9.999e-05,2]
[348590162,1736649041874,-141.5222988,9.999e-05,2]
[348590163,1736649041901,-358.4777012,9.999e-05,2]
[348590164,1736649041911,-500.0,9.999e-05,2]
[348590165,1736649041921,-500.0,9.999e-05,2]
[348590166,1736649041930,-500.0,9.999e-05,2]
[348590167,1736649041939,-500.0,9.999e-05,2]
[348590168,1736649041948,-500.0,9.999e-05,2]
[348590169,1736649041958,-500.0,9.999e-05,2]
[348590170,1736649041969,-500.0,9.999e-05,2]
[348590171,1736649041978,-500.0,9.999e-05,2]
[348590172,1736649041988,-500.0,9.999e-05,2]
[348590173,1736649041997,-500.0,9.999e-05,2]
[348590174,1736649042007,-1326.01672397,9.999e-05,2]
[348590175,1736649042019,-4244.00144591,9.999e-05,2]
[348590176,1736649042036,-281.45500001,9.999e-05,2]
[348590178,1736649042827,-291.31912748,9.996e-05,2]
[348590179,1736649042839,-208.68087252,9.996e-05,2]
[348590180,1736649042848,-1324.58620383,9.999e-05,2]
[348590181,1736649042861,-5079.2,9.999e-05,2]
[348590189,1736649045744,-500.0,9.98e-05,2]
[348590190,1736649045753,-791.96,9.995e-05,2]
[348590191,1736649045763,-599.3,9.995e-05,2]
[348590192,1736649045773,-500.0,9.995e-05,2]
[348590193,1736649045783,-218139.19652697,9.999e-05,2]
[348590194,1736649045794,-19605.54409931,9.999e-05,2]
[348590195,1736649045805,-500.0,9.999e-05,2]
[348590196,1736649045814,-627.24231345,9.999e-05,2]
[348590197,1736649045824,-500.0,9.999e-05,2]
[348590198,1736649045833,-500.0,9.999e-05,2]
[348590199,1736649045842,-500.0,9.999e-05,2]
[348590200,1736649045851,-500.0,9.999e-05,2]
[348590201,1736649045860,-500.0,9.999e-05,2]
[348590202,1736649045869,-500.0,9.999e-05,2]
[348590203,1736649045879,-500.0,9.999e-05,2]
[348590204,1736649045887,-500.0,9.999e-05,2]
[348590205,1736649045897,-500.0,9.999e-05,2]
[348590206,1736649045906,-500.0,9.999e-05,2]
[348590207,1736649045915,-506.24952029,9.999e-05,2]
[348590208,1736649045924,-500.0,9.999e-05,2]
[348590209,1736649045933,-500.0,9.999e-05,2]
[348590210,1736649045943,-500.0,9.999e-05,2]
[348590211,1736649045952,-500.0,9.999e-05,2]
[348590212,1736649045962,-500.0,9.999e-05,2]
[348590213,1736649045972,-500.0,9.999e-05,2]
[348590214,1736649045982,-500.0,9.999e-05,2]
[348590215,1736649045993,-500.0,9.999e-05,2]
[348590216,1736649046003,-500.0,9.999e-05,2]
[348590217,1736649046012,-231.81511697,9.999e-05,2]
[348590219,1736649433320,754.55,8.219e-05,2]
[348590220,1736649627835,4012.0,0.00012,24]
[348590221,1736649902095,159.14102332,0.0002,120]
[348590253,1736650231928,-972.65235318,8.863e-05,2]
[348590254,1736650231939,-27.34764682,8.863e-05,2]
[348590255,1736650231948,-2397.35235289,8.868e-05,2]
[348590256,1736650231959,-123.81113839,8.868e-05,2]
[348590257,1736650231969,-262.95,8.868e-05,2]
[348590258,1736650231978,-11.16665495,8.927e-05,2]
[348590259,1736650232147,-288.83334505,8.927e-05,2]
[348590260,1736650232157,-11152.71,8.928e-05,2]
[348590261,1736650232167,-201.60356027,8.964e-05,2]
[348590262,1736650232179,-294.3,8.964e-05,2]
[348590263,1736650232189,-1500.0,8.98e-05,2]
[348590264,1736650232199,-429.27,8.991e-05,2]
[348590265,1736650232210,-250.0,8.992e-05,2]
[348590266,1736650232219,-165.78,9.051e-05,2]
[348590267,1736650232229,-150.99,9.051e-05,2]
[348590268,1736650232239,-168.72,9.158e-05,2]
[348590269,1736650232249,-163.212,9.5e-05,2]
[348590270,1736650232259,-600.0,9.5e-05,3]
[348590271,1736650232270,-7145.16,9.589e-05,2]
[348590272,1736650232282,-1200.0,9.6e-05,3]
[348590273,1736650232293,-1003.0,9.6e-05,2]
[348590274,1736650232302,-1800.0,9.7e-05,3]
[348590275,1736650232312,-500.0,9.733e-05,2]
[348590276,1736650232323,-1000.0,9.8e-05,2]
[348590277,1736650232332,-2400.0,9.8e-05,3]
[348590278,1736650232342,-395.0,9.82e-05,2]
[348590279,1736650232352,-15206.1378,9.894e-05,2]
[348590280,1736650232362,-150.0,9.899e-05,2]
[348590282,1736650232372,-1487.6541,9.9e-05,2]
[348590284,1736650232381,-684.2509,9.9e-05,2]
[348590286,1736650232390,-3000.0,9.9e-05,2]
[348590288,1736650232399,-1663.0,9.9e-05,2]
[348590289,1736650232408,-3000.0,9.9e-05,3]
[348590291,1736650232416,-1000.0,9.971e-05,2]
[348590293,1736650232426,-262.95,9.977e-05,2]
[348590294,1736650232436,-500.0,9.98e-05,2]
[348590295,1736650232445,-635.52,9.98e-05,2]
[348590296,1736650232455,-1878.76,9.98e-05,2]
[348590297,1736650232465,-581.13,9.98e-05,2]
[348590298,1736650232475,-719.76,9.98e-05,2]
[348590299,1736650232485,-500.0,9.98e-05,2]
[348590300,1736650232494,-500.0,9.98e-05,2]
[348590301,1736650232503,-1135.29,9.98e-05,2]
[348590302,1736650232513,-534.72,9.98e-05,2]
[348590303,1736650232522,-1162.01,9.98e-05,2]
[348590304,1736650232531,-875.18,9.981e-05,2]
[348590305,1736650232540,-1213.85,9.981e-05,2]
[348590306,1736650232550,-1382.49,9.981e-05,2]
[348590307,1736650232559,-1687.19,9.981e-05,2]
[348590308,1736650232568,-1630.05799337,9.981e-05,2]
[348590309,1736650232582,-733.49200663,9.981e-05,2]
[348590310,1736650232591,-459.04728254,9.981e-05,2]
[348590311,1736650232602,-2494.40896192,9.981e-05,2]
[348590312,1736650232614,-579.36353194,9.981e-05,2]
[348590314,1736650232625,-336.50062,9.981e-05,2]
[348590316,1736650232637,-2178.5996036,9.981e-05,2]
[348590317,1736650232646,-917.13184774,9.981e-05,2]
[348590318,1736650232658,-116.94815226,9.981e-05,2]
[348590319,1736650232667,-383.05184774,9.981e-05,2]
[348590321,1736650237735,-279.20815226,9.981e-05,2]
[348590322,1736650237745,-723.38,9.981e-05,2]
[348590323,1736650237754,-2393.22,9.981e-05,2]
[348590324,1736650237765,-500.0,9.981e-05,2]
[348590325,1736650237776,-766.64,9.981e-05,2]
[348590327,1736650237787,-967.52,9.983e-05,2]
[348590329,1736650237796,-1503.82,9.983e-05,2]
[348590330,1736650237805,-1000.0,9.983e-05,2]
[348590331,1736650237816,-714.39,9.983e-05,2]
[348590332,1736650237825,-500.0,9.983e-05,2]
[348590333,1736650237835,-2092.9,9.983e-05,2]
[348590334,1736650237844,-1453.55,9.983e-05,2]
[348590335,1736650237854,-1627.398,9.99e-05,2]
[348590336,1736650237863,-1149.37,9.994e-05,2]
[348590337,1736650237873,-818.83,9.994e-05,2]
[348590338,1736650237882,-519.18,9.994e-05,2]
[348590339,1736650237891,-1500.7,9.994e-05,2]
[348590340,1736650237900,-500.0,9.994e-05,2]
[348590341,1736650237910,-975.15,9.994e-05,2]
[348590342,1736650237919,-500.0,9.994e-05,2]
[348590343,1736650237929,-500.0,9.994e-05,2]
[348590344,1736650237938,-500.0,9.994e-05,2]
[348590345,1736650237948,-633.01,9.994e-05,2]
[348590346,1736650237958,-578.17515192,9.994e-05,2]
[348590347,1736650237968,-1566.19,9.994e-05,2]
[348590348,1736650237979,-500.0,9.994e-05,2]
[348590349,1736650237990,-505.92662799,9.994e-05,2]
[348590350,1736650238000,-500.0,9.994e-05,2]
[348590351,1736650238010,-500.0,9.994e-05,2]
[348590352,1736650238019,-211.4139635,9.994e-05,2]
[348590353,1736650238076,-288.5860365,9.994e-05,2]
[348590354,1736650238087,-500.0,9.994e-05,2]
[348590355,1736650238098,-223.28218002,9.994e-05,2]
[348590356,1736650238113,-276.71781998,9.994e-05,2]
[348590357,1736650238124,-70.32218002,9.994e-05,2]
[348590361,1736650238183,-429.67781998,9.994e-05,2]
[348590362,1736650238193,-500.0,9.994e-05,2]
[348590363,1736650238203,-2664.20738941,9.994e-05,2]
[348590371,1736650239960,-61.51261059,9.994e-05,2]
[348590373,1736650239970,-500.0,9.994e-05,2]
[348590374,1736650239979,-511.7099267,9.994e-05,2]
[348590375,1736650239988,-564.65617401,9.994e-05,2]
[348590376,1736650240000,-223.46382599,9.994e-05,2]
[348590377,1736650240009,-500.0,9.994e-05,2]
[348590378,1736650240018,-5.40327892,9.994e-05,2]
[348590379,1736650240176,-2854.54672108,9.994e-05,2]
[348590380,1736650240185,-223.68045022,9.994e-05,2]
[348590381,1736650240194,-1348.73,9.994e-05,2]
[348590382,1736650240203,-500.0,9.994e-05,2]
[348590383,1736650240212,-1023.12726906,9.994e-05,2]
[348590384,1736650240224,-330.29273094,9.994e-05,2]
[348590385,1736650240233,-2.55783296,9.994e-05,2]
[348590386,1736650240243,-493.42999999,9.994e-05,2]
[348590390,1736650243005,-842.31578352,9.994e-05,2]
[348590391,1736650243213,-1086.44638353,9.994e-05,2]
[348590392,1736650243222,-500.0,9.994e-05,2]
[348590393,1736650243231,-500.0,9.994e-05,2]
[348590394,1736650243241,-3135.06943047,9.994e-05,2]
[348590395,1736650243252,-3657.74061708,9.994e-05,2]
[348590396,1736650245933,-927.21,9.981e-05,2]
[348590397,1736650245944,-41.58995245,9.994e-05,2]
[348590398,1736650245954,-500.0,9.994e-05,2]
[348590399,1736650245964,-1079.57,9.994e-05,2]
[348590400,1736650245975,-500.0,9.994e-05,2]
[348590401,1736650245985,-617.56,9.994e-05,2]
[348590402,1736650245995,-500.0,9.994e-05,2]
[348590403,1736650246005,-500.0,9.994e-05,2]
[348590404,1736650246014,-500.0,9.994e-05,2]
[348590405,1736650246023,-201.04603052,9.994e-05,2]
[348590406,1736650246032,-1106.948546,9.994e-05,2]
[348590407,1736650246043,-612.20903692,9.994e-05,2]
[348590408,1736650246052,-500.0,9.994e-05,2]
[348590409,1736650246061,-500.0,9.994e-05,2]
[348590410,1736650246071,-500.0,9.994e-05,2]
[348590411,1736650246079,-500.0,9.994e-05,2]
[348590412,1736650246088,-500.0,9.994e-05,2]
[348590413,1736650246098,-2002.25,9.994e-05,2]
[348590414,1736650246107,-418.41539621,9.994e-05,2]
[348590415,1736650246117,-325.30457507,9.994e-05,2]
[348590416,1736650246126,-1152.697568,9.994e-05,2]
[348590417,1736650246136,-500.0,9.994e-05,2]
[348590418,1736650246145,-79.18389483,9.994e-05,2]
[348590419,1736650246390,-370.58734935,9.994e-05,2]
[348590421,1736650343880,774.97,8.219e-05,2]
[348590422,1736650812732,263547.106696,4.081e-05,7]
[348590423,1736650953803,2045.94125612,0.0002,120]
[348590424,1736651133668,164.49,7.2e-05,2]
[348590434,1736651229738,420.8,0.0002,120]
[348590439,1736651279458,1253.72,8.219e-05,2]
[348590452,1736651432105,-1000.0,8.918e-05,2]
[348590453,1736651432115,-147.33748482,8.963e-05,2]
[348590454,1736651432126,-102.66251518,8.963e-05,2]
[348590455,1736651432136,-500.0,8.987e-05,2]
[348590456,1736651432147,-352.77,9e-05,2]
[348590457,1736651432157,-164.49,9e-05,2]
[348590458,1736651432167,-167.19,9.008e-05,2]
[348590459,1736651432176,-200.0,9.03e-05,2]
[348590460,1736651432185,-439.5,9.06e-05,2]
[348590461,1736651432194,-300.0,9.062e-05,2]
[348590462,1736651432204,-2390.08748482,9.063e-05,2]
[348590463,1736651432215,-6098.72251518,9.063e-05,2]
[348590464,1736651432224,-1323.08,9.112e-05,2]
[348590465,1736651432234,-168.14,9.357e-05,2]
[348590466,1736651432243,-166.95,9.578e-05,2]
[348590467,1736651432252,-152.0,9.819e-05,3]
[348590468,1736651432262,-299.99,9.819e-05,2]
[348590469,1736651432271,-4.36448071,9.819e-05,2]
[348590470,1736651432282,-495.62551929,9.819e-05,2]
[348590471,1736651432291,-150.99,9.819e-05,2]
[348590472,1736651432301,-151.181,9.821e-05,2]
[348590473,1736651432310,-3908.947,9.821e-05,2]
[348590474,1736651432319,-1179.621,9.821e-05,2]
[348590475,1736651432328,-9649.61,9.821e-05,2]
[348590476,1736651432337,-761.9649,9.894e-05,2]
[348590477,1736651432347,-5836.4023,9.894e-05,2]
[348590478,1736651432356,-391.3121,9.894e-05,2]
[348590479,1736651432365,-3948.9865,9.895e-05,2]
[348590480,1736651432375,-500.0,9.973e-05,2]
[348590481,1736651432385,-81634.33765606,9.975e-05,2]
[348590482,1736651432443,-518.48714087,9.975e-05,2]
[348590483,1736651432454,-10602.0,9.975e-05,2]
[348590484,1736651432465,-538.88,9.975e-05,2]
[348590485,1736651432476,-719.51966528,9.975e-05,2]
[348590486,1736651432489,-519.86839141,9.975e-05,2]
[348590487,1736651432502,-1850.7499469,9.975e-05,2]
[348590488,1736651432513,-3223.64630913,9.975e-05,2]